fUSD/lending_fUSD_20240620
["ID","MTS","AMOUNT","RATE_DAILY","PERIOD"]
[329988065,1718899979874,-207.28594965,0.00041917,120]
[329988066,1718899979899,-1045.77646938,0.00041992,120]
[329988067,1718899979926,-50000.0,0.00042,32]
[329988068,1718899979950,-2000.0,0.00042,30]
[329988069,1718899979975,-950.0,0.00042,120]
[329988070,1718899980000,-247.38309405,0.00042,120]
[329988071,1718899980024,-924.99716057,0.00042,120]
[329988072,1718899980051,-3217.23844572,0.00042,120]
[329988073,1718899980075,-1000000.0,0.00042,45]
[329988074,1718899980099,-1000.0,0.00042,120]
[329988075,1718899980124,-1000.0,0.00042,120]
[329988076,1718899980148,-1000.0,0.00042,120]
[329988077,1718899980172,-1000.0,0.00042,120]
[329988078,1718899980196,-1149.69,0.00042,120]
[329988079,1718899980221,-1000.0,0.00042,120]
[329988080,1718899980247,-1281.44922764,0.00042,60]
[329988081,1718899980271,-12353.0,0.00042,60]
[329988082,1718899980299,-2500.0,0.00042,120]
[329988083,1718899980521,-1003.73,0.00042,120]
[329988084,1718899980552,-168.65555556,0.00042137,120]
[329988085,1718899980576,-151.0,0.00042247,120]
[329988086,1718899980606,-165.76818798,0.000423,90]
[329988087,1718899980630,-1000.0,0.000423,120]
[329988088,1718899980653,-1000.0,0.000423,120]
[329988089,1718899980677,-1000.0,0.000423,120]
[329988090,1718899980702,-1000.0,0.000423,120]
[329988091,1718899980726,-1000.0,0.000423,120]
[329988092,1718899980749,-1000.0,0.000423,120]
[329988093,1718899980772,-1000.0,0.000423,120]
[329988094,1718899980798,-1000.0,0.000423,120]
[329988095,1718899980822,-1000.0,0.000423,120]
[329988096,1718899980847,-692.1,0.000423,120]
[329988097,1718899980872,-3211.82504014,0.000425,30]
[329988098,1718899980897,-30000.0,0.000425,30]
[329988099,1718899980924,-2500.0,0.000425,120]
[329988100,1718899980948,-171.7,0.0004274,91]
[329988101,1718899980973,-2717.27813281,0.0004278,120]
[329988102,1718899980997,-149999.0,0.000428,60]
[329988103,1718899981022,-3884.46565811,0.000428,60]
[329988104,1718899981050,-3736.68812334,0.000428,60]
[329988105,1718899981074,-168.65555556,0.00042849,120]
[329988106,1718899981098,-177.08208421,0.0004288,120]
[329988107,1718899981122,-719.63460928,0.000429,30]
[329988108,1718899981146,-2631.0,0.00042989,54]
[329988109,1718899981172,-50000.0,0.00043,33]
[329988110,1718899981195,-1874.0,0.00043,30]
[329988111,1718899981218,-1726.64123342,0.00043,30]
[329988112,1718899981242,-223303.74739314,0.00043,30]
[329988113,1718899981267,-1096.71992896,0.00043,30]
[329988114,1718899981290,-600.0,0.00043,120]
[329988115,1718899981315,-600.0,0.00043,120]
[329988116,1718899981339,-1000000.0,0.00043,45]
[329988117,1718899981363,-1049.35644643,0.00043,30]
[329988118,1718899981386,-2000.0,0.00043,60]
[329988119,1718899981409,-923.23,0.00043,30]
[329988120,1718899981432,-2500.0,0.00043,120]
[329988121,1718899981456,-974.38251226,0.00043,30]
[329988122,1718899981480,-199.83303949,0.0004302,120]
[329988123,1718899981503,-1773.12599179,0.00043098,120]
[329988124,1718899981528,-162.24526047,0.00043098,90]
[329988125,1718899981558,-215.18428934,0.00043098,90]
[329988126,1718899981585,-151.0,0.0004337,120]
[329988127,1718899981615,-199.1389104,0.000435,30]
[329988128,1718899981640,-2849.79722098,0.000435,120]
[329988129,1718899981666,-769.69,0.00043561,120]
[329988130,1718899981692,-10638.78,0.00043561,120]
[329988131,1718899981719,-500.0,0.00043561,120]
[329988132,1718899981744,-168.65555556,0.00043562,120]
[329988133,1718899981770,-2000.0,0.000436,30]
[329988134,1718899981793,-3225.61314024,0.000436,120]
[329988135,1718899981825,-1042.43746029,0.000437,120]
[329988136,1718899981851,-1579.62,0.00043756,120]
[329988137,1718899981876,-10000.0,0.0004378,30]
[329988138,1718899981901,-2000.0,0.00043781,30]
[329988139,1718899981926,-2068.0,0.000438,30]
[329988140,1718899981950,-464.60098831,0.000438,30]
[329988141,1718899981974,-79845.73658598,0.000438,30]
[329988142,1718899981999,-294.13363155,0.000438,120]
[329988143,1718899982024,-446.64301515,0.000438,120]
[329988144,1718899982051,-1889.67997086,0.000438,30]
[329988145,1718899982075,-3175.0,0.00043835,120]
[329988146,1718899982098,-500.0,0.00043835,120]
[329988147,1718899982123,-500.0,0.00043835,120]
[329988148,1718899982147,-500.0,0.00043835,120]
[329988149,1718899982172,-500.0,0.00043835,120]
[329988150,1718899982196,-500.0,0.00043835,120]
[329988151,1718899982221,-500.0,0.00043835,120]
[329988152,1718899982246,-500.0,0.00043835,120]
[329988153,1718899982270,-500.0,0.00043835,120]
[329988154,1718899982294,-150.0,0.00043835,120]
[329988155,1718899982321,-500.0,0.00043835,120]
[329988156,1718899982346,-549.95,0.00043835,120]
[329988157,1718899982371,-1192.0,0.00043835,120]
[329988158,1718899982394,-339.0281459,0.00043835,120]
[329988159,1718899982419,-485.13136928,0.00043835,120]
[329988160,1718899982442,-500.0,0.00043835,120]
[329988161,1718899982465,-1500.0,0.00043835,120]
[329988162,1718899982488,-1195.47,0.00043835,120]
[329988163,1718899982514,-500.0,0.00043835,120]
[329988164,1718899982539,-500.0,0.00043835,120]
[329988165,1718899982565,-500.0,0.00043835,120]
[329988166,1718899982588,-500.0,0.00043835,120]
[329988167,1718899982616,-500.0,0.00043835,120]
[329988168,1718899982640,-500.0,0.00043835,120]
[329988169,1718899982667,-500.0,0.00043835,120]
[329988170,1718899982692,-300.51751062,0.00043835,120]
[329988171,1718899982716,-500.0,0.00043835,120]
[329988172,1718899982740,-508.84,0.00043835,120]
[329988173,1718899982764,-500.0,0.00043835,120]
[329988174,1718899982787,-500.0,0.00043835,120]
[329988175,1718899982812,-500.0,0.00043835,120]
[329988176,1718899982836,-500.0,0.00043835,120]
[329988177,1718899982861,-500.0,0.00043835,120]
[329988178,1718899982885,-500.0,0.00043835,120]
[329988179,1718899982910,-500.0,0.00043835,120]
[329988180,1718899982933,-500.0,0.00043835,120]
[329988181,1718899982957,-500.0,0.00043835,120]
[329988182,1718899982981,-500.0,0.00043835,120]
[329988183,1718899983006,-500.0,0.00043835,120]
[329988184,1718899983029,-500.0,0.00043835,120]
[329988185,1718899983053,-500.0,0.00043835,120]
[329988186,1718899983076,-500.0,0.00043835,120]
[329988187,1718899983271,-500.0,0.00043835,120]
[329988188,1718899983305,-500.0,0.00043835,30]
[329988190,1718899983329,-500.0,0.00043835,120]
[329988191,1718899983353,-500.0,0.00043835,120]
[329988192,1718899983378,-500.0,0.00043835,120]
[329988193,1718899983403,-500.0,0.00043835,120]
[329988194,1718899983426,-500.0,0.00043835,120]
[329988195,1718899983450,-500.0,0.00043835,120]
[329988196,1718899983475,-500.0,0.00043835,120]
[329988197,1718899983499,-500.0,0.00043835,120]
[329988198,1718899983524,-500.0,0.00043835,120]
[329988199,1718899983548,-594.77,0.00043835,120]
[329988200,1718899983571,-500.0,0.00043835,120]
[329988201,1718899983597,-256.806532,0.00043835,120]
[329988202,1718899983625,-500.0,0.00043835,120]
[329988204,1718899983648,-500.0,0.00043835,120]
[329988205,1718899983673,-500.0,0.00043835,120]
[329988206,1718899983698,-500.0,0.00043835,120]
[329988207,1718899983721,-500.0,0.00043835,120]
[329988208,1718899983746,-500.0,0.00043835,120]
[329988209,1718899983770,-500.0,0.00043835,120]
[329988210,1718899983794,-564.12,0.00043835,120]
[329988211,1718899983820,-500.0,0.00043835,120]
[329988212,1718899983845,-500.0,0.00043835,120]
[329988213,1718899983870,-500.0,0.00043835,120]
[329988214,1718899983896,-500.0,0.00043835,120]
[329988215,1718899983921,-500.0,0.00043835,120]
[329988217,1718899983946,-500.0,0.00043835,120]
[329988218,1718899983970,-500.0,0.00043835,120]
[329988220,1718899983994,-500.0,0.00043835,120]
[329988221,1718899984019,-500.0,0.00043835,120]
[329988222,1718899984042,-500.0,0.00043835,120]
[329988223,1718899984069,-500.0,0.00043835,120]
[329988224,1718899984093,-500.0,0.00043835,120]
[329988225,1718899984116,-500.0,0.00043835,120]
[329988226,1718899984139,-500.0,0.00043835,120]
[329988227,1718899984164,-500.0,0.00043835,120]
[329988228,1718899984187,-500.0,0.00043835,120]
[329988229,1718899984211,-500.0,0.00043835,120]
[329988230,1718899984238,-184.72085615,0.00043835,120]
[329988231,1718899984263,-501.09354843,0.00043835,120]
[329988232,1718899984288,-500.0,0.00043835,120]
[329988234,1718899984315,-500.0,0.00043835,120]
[329988236,1718899984339,-500.0,0.00043835,120]
[329988237,1718899984366,-500.0,0.00043835,120]
[329988238,1718899984392,-500.0,0.00043835,120]
[329988239,1718899984415,-500.0,0.00043835,120]
[329988240,1718899984439,-500.0,0.00043835,120]
[329988241,1718899984462,-500.0,0.00043835,120]
[329988242,1718899984486,-500.0,0.00043835,120]
[329988243,1718899984511,-500.0,0.00043835,120]
[329988244,1718899984534,-500.0,0.00043835,120]
[329988245,1718899984560,-500.0,0.00043835,120]
[329988246,1718899984586,-500.0,0.00043835,120]
[329988247,1718899984614,-500.0,0.00043835,120]
[329988248,1718899984638,-748.3,0.00043835,120]
[329988249,1718899984663,-500.0,0.00043835,120]
[329988250,1718899984688,-500.0,0.00043835,120]
[329988251,1718899984716,-500.0,0.00043835,120]
[329988252,1718899984742,-500.0,0.00043835,120]
[329988253,1718899984767,-500.0,0.00043835,120]
[329988255,1718899984793,-500.0,0.00043835,120]
[329988256,1718899984822,-2000.0,0.00043835,30]
[329988257,1718899984845,-500.0,0.00043835,120]
[329988258,1718899984870,-610.39,0.00043835,120]
[329988259,1718899984895,-500.0,0.00043835,120]
[329988260,1718899984920,-500.0,0.00043835,120]
[329988261,1718899984944,-500.0,0.00043835,120]
[329988262,1718899984968,-176.23924811,0.00043835,120]
[329988263,1718899984992,-500.0,0.00043835,120]
[329988264,1718899985018,-500.0,0.00043835,120]
[329988265,1718899985043,-500.0,0.00043835,120]
[329988266,1718899985071,-500.0,0.00043835,120]
[329988267,1718899985095,-500.0,0.00043835,120]
[329988268,1718899985118,-500.0,0.00043835,120]
[329988269,1718899985142,-373.33232371,0.00043835,120]
[329988270,1718899985165,-500.0,0.00043835,120]
[329988271,1718899985188,-500.0,0.00043835,120]
[329988272,1718899985212,-500.0,0.00043835,120]
[329988273,1718899985236,-500.0,0.00043835,120]
[329988274,1718899985261,-724.58,0.00043835,120]
[329988275,1718899985285,-510.39452589,0.00043835,120]
[329988276,1718899985310,-1093.61,0.00043835,120]
[329988277,1718899985334,-968.44,0.00043835,120]
[329988278,1718899985357,-500.0,0.00043835,120]
[329988279,1718899985381,-1067.65,0.00043835,120]
[329988280,1718899985405,-500.0,0.00043835,120]
[329988281,1718899985429,-500.0,0.00043835,120]
[329988282,1718899985452,-500.0,0.00043835,120]
[329988283,1718899985476,-2759.76,0.00043835,120]
[329988284,1718899985500,-500.0,0.00043835,120]
[329988285,1718899985524,-701.59,0.00043835,120]
[329988286,1718899985550,-500.0,0.00043835,120]
[329988287,1718899985574,-534.5,0.00043835,120]
[329988288,1718899985598,-500.0,0.00043835,120]
[329988289,1718899985624,-500.0,0.00043835,120]
[329988290,1718899985649,-500.0,0.00043835,120]
[329988291,1718899985673,-611.19,0.00043835,120]
[329988292,1718899985698,-500.0,0.00043835,120]
[329988293,1718899985722,-1606.87,0.00043835,120]
[329988294,1718899985744,-500.0,0.00043835,120]
[329988295,1718899985768,-1724.15,0.00043835,120]
[329988296,1718899985792,-3055.55,0.00043835,120]
[329988297,1718899985817,-623.62171097,0.00043835,120]
[329988298,1718899985840,-813.16,0.00043835,120]
[329988299,1718899985865,-658.51,0.00043835,120]
[329988300,1718899986056,-500.0,0.00043835,120]
[329988301,1718899986080,-230.09844143,0.00043835,120]
[329988302,1718899986103,-750.0,0.00043835,120]
[329988303,1718899986127,-707.05,0.00043835,120]
[329988304,1718899986150,-500.0,0.00043835,120]
[329988305,1718899986173,-1511.35,0.00043835,120]
[329988306,1718899986197,-500.0,0.00043835,120]
[329988307,1718899986221,-500.0,0.00043835,120]
[329988308,1718899986245,-254.0,0.00043835,120]
[329988309,1718899986269,-893.85,0.00043835,120]
[329988310,1718899986293,-1177.29,0.00043835,120]
[329988311,1718899986318,-500.0,0.00043835,120]
[329988312,1718899986341,-1183.48,0.00043835,120]
[329988313,1718899986366,-500.0,0.00043835,120]
[329988314,1718899986389,-3226.18,0.00043835,120]
[329988315,1718899986414,-500.0,0.00043835,120]
[329988316,1718899986441,-357.80823953,0.00043835,120]
[329988317,1718899986466,-500.0,0.00043835,120]
[329988318,1718899986490,-500.0,0.00043835,120]
[329988319,1718899986516,-500.0,0.00043835,120]
[329988320,1718899986541,-4019.06,0.00043835,120]
[329988321,1718899986568,-599.05,0.00043835,120]
[329988322,1718899986592,-500.0,0.00043835,120]
[329988323,1718899986620,-500.0,0.00043835,120]
[329988324,1718899986644,-500.0,0.00043835,120]
[329988325,1718899986669,-625.78,0.00043835,120]
[329988326,1718899986694,-500.0,0.00043835,120]
[329988327,1718899986718,-500.0,0.00043835,120]
[329988328,1718899986741,-765.62,0.00043835,120]
[329988329,1718899986765,-500.0,0.00043835,120]
[329988330,1718899986788,-557.27,0.00043835,120]
[329988331,1718899986813,-500.0,0.00043835,120]
[329988332,1718899986837,-500.0,0.00043835,120]
[329988333,1718899986861,-500.0,0.00043835,120]
[329988334,1718899986884,-769.69,0.00043835,120]
[329988335,1718899986907,-580.63,0.00043835,120]
[329988336,1718899986930,-500.0,0.00043835,120]
[329988337,1718899986954,-500.0,0.00043835,120]
[329988338,1718899986978,-500.0,0.00043835,120]
[329988339,1718899987003,-10288.83,0.00043835,120]
[329988340,1718899987026,-1191.07,0.00043835,120]
[329988341,1718899987051,-2840.05,0.00043835,120]
[329988342,1718899987074,-639.74,0.00043835,120]
[329988343,1718899987097,-500.0,0.00043835,120]
[329988344,1718899987120,-10638.78,0.00043835,120]
[329988345,1718899987144,-500.0,0.00043835,120]
[329988346,1718899987169,-693.8,0.00043835,120]
[329988347,1718899987193,-500.0,0.00043835,120]
[329988348,1718899987216,-500.0,0.00043835,120]
[329988349,1718899987239,-562.39,0.00043835,120]
[329988350,1718899987261,-671.26,0.00043835,120]
[329988351,1718899987284,-500.0,0.00043835,120]
[329988352,1718899987309,-500.0,0.00043835,120]
[329988353,1718899987332,-500.0,0.00043835,120]
[329988354,1718899987355,-684.4,0.00043835,120]
[329988355,1718899987378,-1140.79,0.00043835,120]
[329988356,1718899987402,-500.0,0.00043835,120]
[329988357,1718899987426,-1174.23,0.00043835,120]
[329988358,1718899987450,-500.0,0.00043835,120]
[329988359,1718899987473,-500.0,0.00043835,120]
[329988360,1718899987497,-500.0,0.00043835,120]
[329988361,1718899987521,-500.0,0.00043835,120]
[329988362,1718899987544,-500.0,0.00043835,120]
[329988363,1718899987570,-1829.84,0.00043835,120]
[329988364,1718899987598,-617.11,0.00043835,120]
[329988365,1718899987627,-3965.02,0.00043835,120]
[329988366,1718899987650,-500.0,0.00043835,120]
[329988367,1718899987673,-500.0,0.00043835,120]
[329988368,1718899987697,-592.27,0.00043835,120]
[329988369,1718899987721,-500.0,0.00043835,120]
[329988370,1718899987744,-500.0,0.00043835,120]
[329988371,1718899987768,-7899.83,0.00043835,120]
[329988372,1718899987792,-500.0,0.00043835,120]
[329988373,1718899987818,-222.66048133,0.00043835,120]
[329988374,1718899987842,-5049.28,0.00043835,120]
[329988375,1718899987865,-500.0,0.00043835,120]
[329988376,1718899987888,-500.0,0.00043835,120]
[329988377,1718899987913,-500.0,0.00043835,120]
[329988378,1718899987939,-500.0,0.00043835,120]
[329988379,1718899987964,-500.0,0.00043835,120]
[329988380,1718899987990,-500.0,0.00043835,120]
[329988381,1718899988015,-500.0,0.00043835,120]
[329988382,1718899988039,-500.0,0.00043835,120]
[329988383,1718899988069,-500.0,0.00043835,120]
[329988384,1718899988094,-500.0,0.00043835,120]
[329988385,1718899988119,-3061.29,0.00043835,120]
[329988386,1718899988144,-500.0,0.00043835,120]
[329988387,1718899988168,-500.0,0.00043835,120]
[329988388,1718899988192,-1095.71,0.00043835,120]
[329988389,1718899988217,-500.0,0.00043835,120]
[329988390,1718899988241,-500.0,0.00043835,120]
[329988391,1718899988267,-577.95,0.00043835,120]
[329988392,1718899988290,-1229.68,0.00043835,120]
[329988393,1718899988321,-856.18,0.00043835,120]
[329988394,1718899988347,-500.0,0.00043835,120]
[329988395,1718899988373,-2778.78,0.00043835,120]
[329988396,1718899988400,-500.0,0.00043835,120]
[329988397,1718899988424,-500.0,0.00043835,120]
[329988398,1718899988449,-500.0,0.00043835,120]
[329988399,1718899988473,-5509.83,0.00043835,120]
[329988400,1718899988497,-500.0,0.00043835,120]
[329988401,1718899988522,-1171.19,0.00043835,120]
[329988402,1718899988545,-962.26,0.00043835,120]
[329988403,1718899988573,-500.0,0.00043835,120]
[329988404,1718899988598,-500.0,0.00043835,120]
[329988405,1718899988791,-500.0,0.00043835,120]
[329988406,1718899988817,-500.0,0.00043835,120]
[329988407,1718899988841,-1487.04,0.00043835,120]
[329988408,1718899988865,-500.0,0.00043835,120]
[329988409,1718899988889,-500.0,0.00043835,120]
[329988410,1718899988914,-500.0,0.00043835,120]
[329988411,1718899988936,-500.0,0.00043835,120]
[329988412,1718899988960,-1344.84,0.00043835,120]
[329988413,1718899988984,-726.84,0.00043835,120]
[329988414,1718899989007,-500.0,0.00043835,120]
[329988415,1718899989031,-500.0,0.00043835,120]
[329988416,1718899989059,-500.0,0.00043835,120]
[329988417,1718899989081,-500.0,0.00043835,120]
[329988418,1718899989106,-272.57510643,0.00043835,120]
[329988419,1718899989133,-500.0,0.00043835,120]
[329988420,1718899989156,-500.0,0.00043835,120]
[329988421,1718899989180,-500.0,0.00043835,120]
[329988422,1718899989206,-837.29,0.00043835,120]
[329988423,1718899989229,-544.09963794,0.00043835,120]
[329988424,1718899989252,-500.0,0.00043835,120]
[329988425,1718899989276,-500.0,0.00043835,120]
[329988426,1718899989299,-1233.74,0.00043835,120]
[329988427,1718899989328,-690.42,0.00043835,120]
[329988428,1718899989359,-500.0,0.00043835,120]
[329988429,1718899989386,-500.0,0.00043835,120]
[329988430,1718899989411,-1968.52,0.00043835,120]
[329988431,1718899989435,-500.0,0.00043835,120]
[329988432,1718899989459,-500.0,0.00043835,120]
[329988433,1718899989484,-500.0,0.00043835,120]
[329988434,1718899989508,-500.0,0.00043835,120]
[329988435,1718899989534,-1665.54,0.00043835,120]
[329988436,1718899989559,-1042.91,0.00043835,120]
[329988437,1718899989584,-500.0,0.00043835,120]
[329988438,1718899989608,-236.96724272,0.00043835,120]
[329988439,1718899989639,-296.71292035,0.00043835,120]
[329988440,1718899989665,-500.0,0.00043835,120]
[329988441,1718899989693,-500.0,0.00043835,120]
[329988442,1718899989719,-500.0,0.00043835,120]
[329988443,1718899989745,-500.0,0.00043835,120]
[329988444,1718899989768,-500.0,0.00043835,120]
[329988445,1718899989794,-500.0,0.00043835,120]
[329988446,1718899989824,-500.0,0.00043835,120]
[329988447,1718899989851,-1721.07,0.00043835,120]
[329988448,1718899989881,-500.0,0.00043835,120]
[329988449,1718899989909,-500.0,0.00043835,120]
[329988450,1718899989937,-500.0,0.00043835,120]
[329988451,1718899989965,-600.24,0.00043835,120]
[329988452,1718899989992,-513.15,0.00043835,120]
[329988453,1718899990019,-813.19,0.00043835,120]
[329988454,1718899990044,-500.0,0.00043835,120]
[329988455,1718899990071,-500.0,0.00043835,120]
[329988456,1718899990096,-732.45,0.00043835,120]
[329988457,1718899990122,-536.99570404,0.00043835,120]
[329988458,1718899990146,-915.89,0.00043835,120]
[329988459,1718899990174,-500.0,0.00043835,120]
[329988460,1718899990199,-544.67,0.00043835,120]
[329988461,1718899990237,-500.0,0.00043835,120]
[329988462,1718899990266,-1393.53,0.00043836,60]
[329988463,1718899990292,-10187.794906,0.00043836,51]
[329988464,1718899990321,-7849.9489083,0.000439,120]
[329988465,1718899990347,-3349.5,0.00043951,99]
[329988466,1718899990375,-50000.0,0.00044,34]
[329988467,1718899990400,-15000.0,0.00044,30]
[329988468,1718899990426,-5113.0,0.00044,30]
[329988469,1718899990451,-495169.00903102,0.00044,50]
[329988470,1718900003781,-200.0,0.00027462,120]
[329988471,1718900003819,-200.0,0.00028306,120]
[329988472,1718900003844,-1000.0,0.00028306,120]
[329988473,1718900003922,-12861.1296297,0.00033265,30]
[329988474,1718900003951,-1621.41002444,0.00033265,30]
[329988475,1718900003996,-1000.0,0.00035821,120]
[329988476,1718900004049,-45198.63364831,0.0004,30]
[329988477,1718900004092,-1000.0,0.00043337,120]
[329988478,1718900004128,-705.55,0.00043561,120]
[329988479,1718900004166,-500.0,0.00043835,120]
[329988480,1718900004197,-626.44,0.00043835,120]
[329988481,1718900004231,-500.0,0.00043835,120]
[329988482,1718900004265,-500.0,0.00043835,120]
[329988483,1718900004299,-543.79,0.00043835,120]
[329988484,1718900004337,-533.83,0.00043835,120]
[329988485,1718900004367,-500.0,0.00043835,120]
[329988486,1718900004400,-655.88,0.00043835,120]
[329988487,1718900004435,-705.55,0.00043835,120]
[329988488,1718900004464,-500.0,0.00043835,120]
[329988489,1718900004497,-500.0,0.00043835,120]
[329988490,1718900004528,-500.0,0.00043835,120]
[329988491,1718900004557,-856.6,0.00043835,120]
[329988492,1718900004593,-693.91,0.00043835,120]
[329988493,1718900004629,-500.0,0.00043835,120]
[329988494,1718900004662,-504830.99096898,0.00044,50]
[329988495,1718900004694,-1000000.0,0.00044,50]
[329988496,1718900004726,-1501.21,0.00044,30]
[329988497,1718900004759,-60000.0,0.00044,30]
[329988498,1718900004790,-850.0,0.00044,120]
[329988499,1718900004822,-207.70375824,0.00044,60]
[329988500,1718900004852,-1000.0,0.00044,120]
[329988501,1718900004883,-370.0,0.00044,120]
[329988502,1718900004914,-500.0,0.00044109,120]
[329988503,1718900004945,-500.0,0.00044109,120]
[329988504,1718900004977,-379.87,0.00044109,120]
[329988505,1718900005007,-213.62,0.00044109,120]
[329988506,1718900005037,-150.0,0.00044109,120]
[329988507,1718900005068,-1192.0,0.00044109,120]
[329988508,1718900005098,-500.0,0.00044109,120]
[329988509,1718900005127,-1500.0,0.00044109,120]
[329988510,1718900005157,-1195.47,0.00044109,120]
[329988511,1718900005187,-500.0,0.00044109,120]
[329988512,1718900005215,-500.0,0.00044109,120]
[329988513,1718900005243,-500.0,0.00044109,120]
[329988514,1718900005273,-500.0,0.00044109,120]
[329988515,1718900005302,-500.0,0.00044109,120]
[329988516,1718900005333,-500.0,0.00044109,120]
[329988517,1718900005362,-500.0,0.00044109,120]
[329988518,1718900005393,-500.0,0.00044109,120]
[329988519,1718900005422,-500.0,0.00044109,120]
[329988520,1718900005452,-500.0,0.00044109,120]
[329988521,1718900005481,-500.0,0.00044109,120]
[329988522,1718900005512,-500.0,0.00044109,120]
[329988523,1718900005541,-500.0,0.00044109,120]
[329988524,1718900005572,-500.0,0.00044109,120]
[329988525,1718900005601,-564.12,0.00044109,120]
[329988526,1718900005638,-500.0,0.00044109,120]
[329988527,1718900005669,-500.0,0.00044109,120]
[329988528,1718900005698,-500.0,0.00044109,120]
[329988529,1718900005728,-500.0,0.00044109,120]
[329988530,1718900005758,-500.0,0.00044109,120]
[329988531,1718900005787,-500.0,0.00044109,120]
[329988532,1718900005819,-545.58002821,0.00044109,120]
[329988533,1718900005847,-500.0,0.00044109,120]
[329988534,1718900005876,-500.0,0.00044109,120]
[329988535,1718900005907,-500.0,0.00044109,120]
[329988536,1718900005936,-500.0,0.00044109,120]
[329988537,1718900005965,-541.57,0.00044109,120]
[329988538,1718900005994,-447.06064807,0.00044109,120]
[329988539,1718900006025,-500.0,0.00044109,120]
[329988540,1718900006055,-500.0,0.00044109,120]
[329988541,1718900006085,-748.3,0.00044109,120]
[329988542,1718900006114,-530.81,0.00044109,120]
[329988543,1718900006141,-500.0,0.00044109,120]
[329988544,1718900006168,-500.0,0.00044109,120]
[329988545,1718900006194,-502.28,0.00044109,120]
[329988546,1718900006219,-2000.0,0.00044109,30]
[329988547,1718900006244,-500.0,0.00044109,120]
[329988548,1718900006269,-610.39,0.00044109,120]
[329988549,1718900006294,-500.0,0.00044109,120]
[329988550,1718900006321,-344.60568355,0.00044109,120]
[329988551,1718900006345,-500.0,0.00044109,120]
[329988552,1718900006370,-332.28,0.00044109,120]
[329988553,1718900006394,-500.0,0.00044109,120]
[329988554,1718900006419,-500.0,0.00044109,120]
[329988555,1718900006443,-362.09115957,0.00044109,120]
[329988556,1718900006467,-214.01675263,0.00044109,120]
[329988557,1718900006491,-194.14418359,0.00044109,120]
[329988558,1718900006518,-534.5,0.00044109,120]
[329988559,1718900006543,-500.0,0.00044109,120]
[329988560,1718900006571,-1606.87,0.00044109,120]
[329988561,1718900006596,-1724.15,0.00044109,120]
[329988562,1718900006624,-3055.55,0.00044109,120]
[329988563,1718900006649,-191.24,0.00044109,120]
[329988564,1718900006674,-750.0,0.00044109,120]
[329988565,1718900006698,-707.05,0.00044109,120]
[329988566,1718900006728,-1511.35,0.00044109,120]
[329988567,1718900006753,-190.11,0.00044109,120]
[329988568,1718900006780,-500.0,0.00044109,120]
[329988569,1718900007298,-1183.48,0.00044109,120]
[329988570,1718900007326,-3226.18,0.00044109,120]
[329988571,1718900007354,-500.0,0.00044109,120]